bitfinex/quotes_ETHUSD_20240730
["timestamp","ask_amount","ask_price","bid_price","bid_amount"]
[1722347370687,2.98918,3345.4,3344.7,2.98979]
[1722347370882,2.98918,3345.4,3344.7,5.9795]
[1722347370883,2.98923,3345.4,3344.7,5.9795]
[1722347371182,2.98923,3345.4,3344.3,2.4739]
[1722347371183,2.9891,3345.5,3345.0,2.98952]
[1722347371389,2.98918,3345.4,3344.9,2.98961]
[1722347371583,5.0086957,3345.6,3344.5,2.98992]
[1722347371584,2.98927,3345.3,3344.5,2.98992]
[1722347371810,2.98951,3345.1,3344.6,2.98988]
[1722347372424,2.98951,3345.1,3344.5,0.5768848]
[1722347372628,5.97915,3345.0,3344.5,0.5768848]
[1722347372819,2.369,3345.5,3344.3,5.46405]
[1722347373018,2.98962,3345.0,3344.4,2.99006]
[1722347373184,2.98965,3344.9,3344.3,5.46405]
[1722347373385,2.98975,3344.8,3344.3,2.99015]
[1722347373630,2.98963,3344.9,3344.3,2.9901]
[1722347373847,2.98963,3344.9,3344.3,5.9802]
[1722347373989,2.98963,3344.9,3344.4,2.99005]
[1722347374306,2.98985,3344.7,3344.2,2.99517]
[1722347374691,2.98968,3344.9,3344.3,2.99008]
[1722347375600,9.64226172,3345.3,3344.4,2.99]
[1722347375786,2.98958,3345.0,3344.5,2.98993]
[1722347375990,3.0,3345.2,3344.2,0.005]
[1722347376306,2.98923,3345.4,3344.7,5.47495]
[1722347376612,2.98927,3345.3,3344.8,2.9897]
[1722347376812,2.98927,3345.3,3344.8,3.19025124]
[1722347377225,2.98917,3345.4,3344.8,3.19019124]
[1722347377387,2.98917,3345.4,3344.9,2.98955]
[1722347377587,7.9977157,3345.6,3344.9,3.19006725]
[1722347377795,7.9977157,3345.6,3344.9,0.20051725]
[1722347378007,2.98922,3345.4,3344.9,0.20051725]
[1722347378202,2.98949,3345.1,3344.7,2.4852]
[1722347378402,5.0086957,3345.6,3344.6,2.98981]
[1722347378403,5.97864,3345.3,3345.0,0.20048325]
[1722347378612,5.97864,3345.3,3344.8,2.9897]
[1722347378613,5.0086957,3345.6,3344.7,2.98979]
[1722347378813,2.98942,3345.2,3344.4,2.99]
[1722347379141,2.98962,3344.9,3344.4,2.99]
[1722347379305,2.98954,3345.0,3344.5,3.19062324]
[1722347379914,2.98966,3344.9,3344.5,0.20065324]
[1722347380245,2.98966,3344.9,3344.4,2.99002]
[1722347380443,2.98966,3344.9,3344.2,2.4073]
[1722347380444,2.98976,3344.8,3344.6,0.20061924]
[1722347380604,2.98976,3344.8,3344.2,5.39749]
[1722347380605,2.98976,3344.8,3344.5,0.20065324]
[1722347380949,2.98976,3344.8,3344.6,0.20061924]
[1722347381364,2.9898,3344.7,3344.2,5.39753]
[1722347381660,2.98968,3344.9,3344.2,5.39753]
[1722347381822,2.98968,3344.9,3344.4,2.99004]
[1722347382258,2.98968,3344.9,3344.2,5.39753]
[1722347382259,5.97971,3344.7,3344.2,5.39751]
[1722347382457,2.98989,3344.6,3344.2,2.4073]
[1722347382620,2.9898,3344.7,3344.2,5.3975]
[1722347383025,2.99001,3344.5,3344.2,0.005]
[1722347384261,2.98976,3344.8,3344.2,0.005]
[1722347384560,2.98968,3344.9,3344.4,2.99005]
[1722347384720,2.98937,3345.2,3344.5,2.98997]
[1722347384921,10.53011155,3345.5,3344.5,2.98994]
[1722347385126,2.98958,3345.0,3344.5,2.98994]
[1722347385559,2.98958,3345.0,3344.5,2.98993]
[1722347385774,2.98966,3344.9,3344.3,2.99007]
[1722347385972,2.98953,3345.0,3344.5,2.98997]
[1722347386268,2.98946,3345.1,3344.6,2.98984]
[1722347386565,2.98954,3345.0,3344.5,2.98993]
[1722347386751,2.98954,3345.0,3344.5,2.98992]
[1722347387140,2.98945,3345.1,3344.6,2.98983]
[1722347387926,2.98953,3345.0,3344.5,2.98998]
[1722347388125,2.98945,3345.1,3344.5,5.97988]
[1722347388374,8.3581,3345.5,3344.3,0.3300098]
[1722347388375,2.17209499,3345.5,3344.6,3.08068898]
[1722347388522,12.4786957,3345.6,3345.1,2.98939]
[1722347388987,2.9891,3345.5,3345.1,2.98944]
[1722347389172,15.4676957,3345.6,3345.1,2.98944]
[1722347389557,12.4786957,3345.6,3344.6,5.43956]
[1722347389746,12.4786957,3345.6,3345.1,2.9894]
[1722347389940,15.4676957,3345.6,3345.1,2.9894]
[1722347390179,15.4676957,3345.6,3345.2,2.98933]
[1722347390180,12.4786957,3345.6,3345.2,2.98933]
[1722347391191,15.4676957,3345.6,3345.1,2.98944]
[1722347391379,3.37120212,3345.5,3345.0,2.98953]
[1722347391539,3.37120212,3345.5,3345.0,2.98948]
[1722347391746,12.4786957,3345.6,3345.0,2.98948]
[1722347392102,12.4786957,3345.6,3345.3,2.98925]
[1722347392389,5.0086957,3345.6,3345.3,2.98925]
[1722347392899,5.0086957,3345.6,3345.3,2.98922]
[1722347393057,2.98896,3345.7,3345.2,2.98935]
[1722347393386,2.989,3345.6,3345.3,0.20012563]
[1722347393694,2.989,3345.6,3345.0,2.98952]
[1722347393898,2.98923,3345.4,3344.8,2.98966]
[1722347394198,2.98929,3345.3,3344.8,2.98966]
[1722347394403,2.98954,3345.0,3344.9,0.20026159]
[1722347394759,5.97914,3345.0,3344.6,7.37]
[1722347394963,0.597852,3345.3,3344.9,0.20011739]
[1722347395163,0.597852,3345.3,3344.3,2.9901]
[1722347395164,2.98953,3345.0,3344.4,2.99002]
[1722347395428,5.97914,3345.0,3344.4,2.99002]
[1722347395565,2.98962,3344.9,3344.4,2.99002]
[1722347395766,2.98962,3344.9,3344.5,2.98997]
[1722347395997,2.98954,3345.0,3344.5,2.98997]
[1722347396813,2.98962,3344.9,3344.4,2.99006]
[1722347396970,2.98971,3344.8,3344.3,2.9901]
[1722347397318,2.98971,3344.8,3344.3,5.9802]
[1722347397530,2.98971,3344.8,3344.4,2.99007]
[1722347397663,2.98962,3344.9,3344.4,2.99007]
[1722347397863,0.597852,3345.3,3344.5,2.98997]
[1722347397864,2.98954,3345.0,3344.5,2.98997]
[1722347398269,2.98984,3344.7,3344.2,0.005]
[1722347398665,2.98989,3344.6,3344.2,0.005]
[1722347399271,2.99002,3344.5,3344.2,0.005]
[1722347399469,2.99012,3344.4,3344.2,0.005]
[1722347400395,2.98993,3344.6,3344.2,0.005]
[1722347400919,2.99007,3344.4,3344.2,0.005]
[1722347401118,2.98965,3344.9,3344.2,0.005]
[1722347401323,2.99016,3344.3,3344.2,0.005]
[1722347401493,0.59912649,3344.8,3344.2,0.005]
[1722347401494,2.98995,3344.6,3344.2,0.005]
[1722347401883,0.59912649,3344.8,3344.2,0.005]
[1722347401884,2.99005,3344.5,3344.2,0.005]
[1722347402083,2.98991,3344.6,3344.2,0.005]
[1722347402507,3.00161494,3345.0,3344.2,0.005]
[1722347402508,0.63261494,3345.0,3344.2,0.005]
[1722347402710,2.98985,3344.7,3344.2,0.005]
[1722347403286,2.98989,3344.6,3344.2,0.005]
[1722347403486,2.98985,3344.7,3344.2,2.9952]
[1722347403787,2.98985,3344.7,3344.2,0.005]
[1722347404133,2.99,3344.5,3344.2,0.005]
[1722347404429,3.587965,3344.5,3344.2,0.005]
[1722347404591,2.99011,3344.4,3344.2,0.005]
[1722347404989,2.99016,3344.3,3344.2,0.005]
[1722347405187,5.98032,3344.3,3344.2,0.005]
[1722347405394,2.99016,3344.3,3344.2,0.005]
[1722347406398,5.98032,3344.3,3344.2,0.005]
[1722347406649,6.877343,3344.3,3344.2,0.005]
[1722347407705,3.887183,3344.3,3344.2,0.005]
[1722347408407,6.877343,3344.3,3344.2,0.20582081]
[1722347408610,6.877343,3344.3,3344.2,0.005]
[1722347409952,9.867503,3344.3,3344.2,0.005]
[1722347410167,6.877343,3344.3,3344.2,0.005]
[1722347410522,12.236503,3344.3,3344.2,0.005]
[1722347410725,15.272103,3344.3,3344.2,0.005]
[1722347411417,18.262263,3344.3,3344.2,0.005]
[1722347411775,20.4428506,3344.3,3344.2,0.005]
[1722347412260,21.262263,3344.3,3344.2,0.005]
[1722347412575,26.5870106,3344.3,3344.2,0.005]
[1722347412778,18.1057,3344.1,3344.0,0.005]
[1722347413073,18.1057,3344.1,3343.3,0.1530604]
[1722347413074,11.96384,3343.4,3343.3,0.1530604]
[1722347413219,23.4778,3343.4,3343.3,0.1530604]
[1722347413650,11.96528,3343.0,3342.9,0.005]
[1722347413828,17.88428,3343.0,3342.9,0.005]
[1722347414019,11.90164,3343.0,3342.9,0.005]
[1722347414220,5.99132,3343.0,3342.9,0.005]
[1722347414552,8.98264,3343.0,3342.9,0.005]
[1722347415231,11.97396,3343.0,3342.9,0.005]
[1722347415446,12.52396,3343.0,3342.9,0.005]
[1722347415761,14.92096,3343.0,3342.9,0.005]
[1722347415963,16.949065,3343.0,3342.9,0.005]
[1722347417460,19.940385,3343.0,3341.3,5.41739]
[1722347417659,2.99258,3341.6,3340.9,2.99317]
[1722347417881,2.99258,3341.6,3340.8,2.3196]
[1722347417882,2.99246,3341.8,3341.4,0.18670634]
[1722347418222,2.99238,3341.9,3341.3,2.99283]
[1722347418458,2.369,3342.1,3341.5,0.18667227]
[1722347418459,2.99213,3342.1,3341.5,0.18667227]
[1722347418634,10.47,3342.4,3341.5,0.05985034]
[1722347418848,10.47,3342.4,3342.1,2.99206]
[1722347418849,3.0,3342.4,3342.1,2.99206]
[1722347419025,3.0,3342.4,3341.9,2.99226]
[1722347419026,3.0,3342.4,3341.7,2.99245]
[1722347419358,2.99195,3342.3,3341.7,2.99245]
[1722347419563,2.99205,3342.2,3341.8,0.18673874]
[1722347419764,2.99227,3342.0,3341.8,0.18673874]
[1722347419929,2.9923,3341.9,3341.4,2.99273]
[1722347420131,2.99219,3342.1,3341.9,0.186669]
[1722347420460,4.09127657,3342.3,3341.9,0.186669]
[1722347420640,2.99218,3342.1,3341.5,2.99259]
[1722347420836,2.99218,3342.1,3342.0,0.186609]
[1722347421461,2.99231,3341.9,3341.4,2.99268]
[1722347422075,2.99218,3342.1,3341.4,2.99268]
[1722347422243,2.99224,3342.0,3341.4,4.263458]
[1722347422429,2.99222,3342.0,3341.4,4.263508]
[1722347422965,2.99222,3342.0,3341.3,10.36282]
[1722347422966,2.9924,3341.8,3341.3,10.36282]
[1722347423289,2.9924,3341.8,3341.3,2.99282]
[1722347423433,2.9924,3341.8,3341.4,0.18684903]
[1722347423629,2.99258,3341.6,3341.4,0.18684903]
[1722347423831,2.99258,3341.6,3341.1,2.3451]
[1722347424038,6.284398,3341.6,3341.5,0.18747336]
[1722347424268,2.99299,3341.2,3340.6,2.4917]
[1722347424533,2.9927,3341.5,3340.8,2.99324]
[1722347424865,2.99291,3341.3,3340.9,0.18774917]
[1722347425072,2.99289,3341.3,3340.9,0.18774917]
[1722347425287,2.99276,3341.4,3340.6,2.4917]
[1722347425288,2.99298,3341.2,3340.6,2.4917]
[1722347425462,2.99295,3341.2,3340.6,2.4917]
[1722347425658,2.99295,3341.2,3340.7,0.18781732]
[1722347425892,2.99307,3341.1,3340.7,0.18781732]
[1722347426105,2.99281,3341.4,3340.7,0.18781732]
[1722347426386,2.99281,3341.4,3340.9,2.99319]
[1722347426593,2.99283,3341.4,3340.7,3.18113732]
[1722347426913,2.99302,3341.1,3341.0,0.18779298]
[1722347427044,2.99294,3341.2,3340.6,2.99347]
[1722347427249,2.99294,3341.2,3341.0,0.18779298]
[1722347427552,2.99294,3341.2,3341.1,0.1877589]
[1722347427946,2.99294,3341.2,3340.7,2.99338]
[1722347428246,2.99294,3341.2,3341.1,0.1877589]
[1722347428448,2.99314,3341.0,3340.4,2.9936]
[1722347428759,0.42819183,3341.4,3340.5,2.99356]
[1722347428760,2.99288,3341.3,3340.5,2.99356]
[1722347429090,2.99267,3341.5,3341.0,2.99305]
[1722347429242,2.369,3341.7,3340.8,2.99325]
[1722347429447,2.369,3341.7,3341.1,0.18781408]
[1722347429448,2.99293,3341.2,3341.1,0.18781408]
[1722347429808,2.369,3341.3,3341.1,0.18781408]
[1722347430100,2.99319,3341.0,3340.2,2.3316]
[1722347430300,2.99325,3340.9,3340.3,3.22686]
[1722347430593,2.99325,3340.9,3340.4,2.99359]
[1722347430795,3.54335,3340.8,3340.4,0.18788732]
[1722347430957,2.99356,3340.5,3340.4,0.18788732]
[1722347431162,0.55,3340.8,3339.9,2.4435604]
[1722347431499,0.55,3341.0,3340.4,0.18778178]
[1722347431799,0.55,3341.0,3339.9,2.4435604]
[1722347431800,2.369,3340.5,3339.9,0.1480604]
[1722347431956,2.99388,3340.2,3339.9,0.1480604]
[1722347432157,2.9937,3340.4,3339.9,3.1421404]
[1722347432398,2.99348,3340.6,3340.0,0.21920516]
[1722347432717,2.9937,3340.4,3340.0,0.21920516]
[1722347432995,1.27078,3340.6,3339.9,0.1480604]
[1722347432996,1.27078,3340.6,3340.1,0.21917013]
[1722347433196,2.99338,3340.7,3340.2,2.99378]
[1722347433398,6.171,3340.9,3339.9,0.1480604]
[1722347433399,0.55,3340.6,3339.9,0.1480604]
[1722347433582,0.55,3340.6,3340.3,0.21910007]
[1722347433786,6.53689,3340.7,3340.2,2.99375]
[1722347434110,5.98718,3340.5,3340.4,0.21906505]
[1722347434405,2.99365,3340.4,3339.9,0.1480604]
[1722347434873,2.99365,3340.4,3340.0,0.21971479]
[1722347435092,2.99384,3340.2,3340.0,0.21971479]
[1722347435715,2.99392,3340.1,3340.0,0.21971479]
[1722347436595,3.565678,3340.5,3340.0,0.21971479]
[1722347436596,2.99381,3340.3,3340.0,0.21971479]
[1722347436796,0.6559488,3340.3,3340.0,0.21971479]
[1722347437118,2.99375,3340.3,3340.0,0.21971479]
[1722347437314,2.369,3340.5,3339.9,3.1421604]
[1722347437511,2.9862,3340.7,3340.1,2.99383]
[1722347437684,3.0,3340.9,3340.6,2.99342]
[1722347437887,3.0,3340.9,3340.2,0.21964473]
[1722347438223,3.0,3340.9,3340.4,2.9936]
[1722347438526,3.0,3340.9,3340.0,0.05987502]
[1722347438818,3.0,3340.9,3340.6,2.99342]
[1722347439113,3.0,3340.9,3340.8,2.99329]
[1722347439417,3.0,3340.9,3340.8,3.2130428]
[1722347439624,3.0,3340.9,3340.8,6.2063328]
[1722347439782,3.0,3340.9,3340.8,3.2130428]
[1722347440182,3.0,3340.9,3340.8,6.2063328]
[1722347440388,2.0086957,3341.0,3340.9,5.9864]
[1722347440813,2.0086957,3341.0,3340.9,0.21943206]
[1722347441089,5.0018057,3341.0,3340.9,0.21943206]
[1722347441285,7.9949157,3341.0,3339.9,2.4943604]
[1722347441520,2.99338,3340.7,3340.2,2.99376]
[1722347441720,2.99338,3340.7,3340.3,0.21968112]
[1722347442111,1.03642357,3340.7,3340.3,0.21968112]
[1722347442318,5.36233,3340.8,3339.9,0.1480604]
[1722347442519,2.0086957,3341.0,3339.9,0.1480604]
[1722347442520,5.98802,3340.0,3339.9,0.1480604]
[1722347442831,2.99401,3340.0,3339.9,0.1480604]
[1722347443330,5.98802,3340.0,3339.9,0.1480604]
[1722347443621,2.369,3340.4,3339.9,0.3604077]
[1722347443622,2.99397,3340.1,3339.9,0.3604077]
[1722347443830,0.78809,3340.3,3339.9,0.1480604]
[1722347444043,2.99353,3340.6,3340.0,0.21231227]
[1722347444238,2.99372,3340.4,3340.0,0.21231227]
[1722347444437,2.99372,3340.4,3339.9,0.1480604]
[1722347444655,2.99379,3340.3,3340.1,0.21250299]
[1722347444929,2.99379,3340.3,3340.2,0.21246797]
[1722347445165,2.99362,3340.5,3339.9,0.1480604]
[1722347445346,2.369,3340.8,3339.9,0.1480604]
[1722347445347,5.36234,3340.8,3340.2,2.99382]
[1722347445487,2.99352,3340.6,3340.2,0.21246797]
[1722347445927,2.99352,3340.6,3340.0,2.99394]
[1722347446126,2.99361,3340.5,3339.9,3.1421304]
[1722347446330,2.99358,3340.5,3339.9,3.1421304]
[1722347446493,2.99358,3340.5,3340.0,3.20651512]
[1722347446691,7.00823957,3340.7,3340.1,2.99387]
[1722347446891,4.01478957,3340.7,3340.0,0.21252512]
[1722347447126,0.99337896,3340.6,3340.2,0.21242603]
[1722347447352,0.99337896,3340.6,3339.9,0.1480604]
[1722347447353,0.55,3340.9,3340.3,2.99373]
[1722347447491,3.5432,3340.9,3340.3,3.20612101]
[1722347447691,0.55,3340.9,3340.3,3.20612101]
[1722347447936,2.0086957,3341.0,3340.5,2.99348]
[1722347448138,2.0086957,3341.0,3340.5,2.99351]
[1722347448436,5.0018057,3341.0,3340.6,0.2123053]
[1722347448602,2.0086957,3341.0,3340.7,2.99337]
[1722347448789,2.0086957,3341.0,3340.9,2.9932]
[1722347449186,2.0086957,3341.0,3340.9,3.20540025]
[1722347449488,5.0018057,3341.0,3340.9,0.21220025]
[1722347449692,5.50198627,3341.0,3340.9,0.21220025]
[1722347449999,2.0086957,3341.0,3340.9,0.21200675]
[1722347450414,2.0086957,3341.0,3340.6,2.99346]
[1722347450645,2.0086957,3341.0,3340.9,2.9932]
[1722347451020,2.0086957,3341.0,3340.9,3.20519708]
[1722347451399,2.0086957,3341.0,3340.9,0.21199708]
[1722347451594,2.50886027,3341.0,3340.9,0.21199708]
[1722347451794,2.50886027,3341.0,3340.5,2.9935]
[1722347451795,5.50203027,3341.0,3340.5,2.9935]
[1722347452041,2.50886027,3341.0,3340.6,2.99346]
[1722347452343,2.0086957,3341.0,3340.6,0.21208278]
[1722347452713,5.0018057,3341.0,3340.6,0.21208278]
[1722347452919,2.0086957,3341.0,3340.6,0.21208278]
[1722347453114,2.0086957,3341.0,3340.6,3.20551278]
[1722347453299,2.99334,3340.8,3340.6,0.21208278]
[1722347453503,2.99334,3340.8,3340.1,2.99386]
[1722347453504,3.49358357,3340.7,3340.2,2.99377]
[1722347453706,2.0086957,3341.0,3340.3,0.21228783]
[1722347453707,2.99352,3340.6,3340.3,0.21228783]
[1722347453905,2.0086957,3341.0,3340.0,2.99393]
[1722347454222,2.0086957,3341.0,3340.5,2.99348]
[1722347454530,2.0086957,3341.0,3340.5,2.9935]
[1722347454737,2.0086957,3341.0,3340.6,0.21221823]
[1722347454904,2.0086957,3341.0,3340.7,2.99332]
[1722347455111,2.0086957,3341.0,3340.6,0.21221823]
[1722347455420,2.0086957,3341.0,3340.7,0.21216387]
[1722347455615,2.0086957,3341.0,3340.8,2.99324]
[1722347456147,2.0086957,3341.0,3340.9,0.21209384]
[1722347456348,2.0086957,3341.0,3340.8,2.99329]
[1722347456548,2.0086957,3341.0,3340.6,2.99338]
[1722347456757,2.0086957,3341.0,3340.9,0.21209384]
[1722347456907,2.0086957,3341.0,3340.8,2.99323]
[1722347457112,2.0086957,3341.0,3340.7,3.20554387]
[1722347457450,2.0086957,3341.0,3340.8,0.21212885]
[1722347457744,2.20956527,3341.0,3340.8,0.21212885]
[1722347458143,2.0086957,3341.0,3339.6,2.99432]
[1722347458315,2.0086957,3341.0,3340.9,2.9932]
[1722347458501,2.0086957,3341.0,3340.9,6.19849384]
[1722347458906,2.0086957,3341.0,3340.9,0.21209384]
[1722347459143,2.0086957,3341.0,3340.6,2.99347]
[1722347459144,0.5086957,3341.0,3340.6,2.99347]
[1722347459341,0.5086957,3341.0,3340.7,0.21216387]
[1722347459941,3.5018657,3341.0,3340.7,0.21216387]
[1722347460266,0.5086957,3341.0,3340.3,2.99374]
[1722347460464,3.5018657,3341.0,3340.8,0.21212885]
[1722347460668,1.15817227,3341.0,3340.6,2.99341]
[1722347460833,3.5018457,3341.0,3340.5,2.99352]
[1722347461028,3.5018457,3341.0,3340.7,0.21216387]
[1722347461368,0.5086957,3341.0,3340.5,2.99351]
[1722347461583,0.5086957,3341.0,3340.8,0.21212885]
[1722347461886,0.5086957,3341.0,3340.5,2.9935]
[1722347462170,3.5018457,3341.0,3340.5,2.9935]
[1722347462325,3.5018457,3341.0,3340.6,0.21219889]
[1722347462526,0.5086957,3341.0,3340.6,0.21219889]
[1722347462730,3.5018057,3341.0,3340.6,0.21219889]
[1722347463071,0.5086957,3341.0,3340.7,2.9933]
[1722347463275,0.5086957,3341.0,3340.7,0.2]
[1722347463567,0.5086957,3341.0,3340.8,0.21212885]
[1722347463865,6.63587357,3340.9,3340.8,0.20836839]
[1722347464376,5.98658,3340.8,3340.7,0.2]
[1722347464673,6.53658,3340.8,3340.7,0.2]
[1722347464855,3.5018657,3341.0,3340.7,0.41210947]
[1722347465057,3.5018657,3341.0,3340.7,0.2]
[1722347465058,0.5086957,3341.0,3340.7,0.2]
[1722347465257,2.99328,3340.9,3340.7,0.2]
[1722347465573,3.5018057,3341.0,3340.8,0.21207445]
[1722347465776,2.9932,3340.9,3340.8,0.21207445]
[1722347465930,2.9932,3340.9,3340.7,0.2]
[1722347466273,0.5086957,3341.0,3340.7,0.2]
[1722347466487,0.5086957,3341.0,3340.7,3.1933]
[1722347466628,0.5086957,3341.0,3340.8,0.21207445]
[1722347466838,0.5086957,3341.0,3340.9,2.9932]
[1722347467057,0.5086957,3341.0,3340.8,2.99329]
[1722347467258,0.5086957,3341.0,3340.9,0.21203944]
[1722347467659,0.5086957,3341.0,3340.7,3.3933]
[1722347467869,0.5086957,3341.0,3340.9,0.21203944]
[1722347468185,0.5086957,3341.0,3340.8,0.21207445]
[1722347468347,0.5086957,3341.0,3340.9,0.21203944]
[1722347468546,0.5086957,3341.0,3340.7,0.4]
[1722347468757,0.5086957,3341.0,3340.8,0.21207445]
[1722347468758,3.5018557,3341.0,3340.8,0.21207445]
[1722347468956,3.85204127,3341.0,3340.8,0.21207445]
[1722347469159,5.9864,3340.9,3340.8,0.21207445]
[1722347469361,5.9864,3340.9,3340.7,0.4]
[1722347469362,5.98658,3340.8,3340.7,0.4]
[1722347469649,6.53658,3340.8,3340.7,0.4]
[1722347471350,6.53658,3340.8,3340.7,0.6]
[1722347471686,8.5648186,3340.8,3340.7,0.6]
[1722347471915,3.85204127,3341.0,3340.7,0.6]
[1722347472092,0.5086957,3341.0,3340.7,0.6]
[1722347472411,3.5018557,3341.0,3340.8,0.2]
[1722347472568,0.5086957,3341.0,3340.8,0.2]
[1722347472973,0.5086957,3341.0,3340.9,0.21203944]
[1722347473371,0.5086957,3341.0,3340.8,0.2]
[1722347473372,0.5086957,3341.0,3340.8,3.19328]
[1722347473699,3.0,3341.5,3341.0,2.99311]
[1722347473862,3.0,3341.5,3341.1,2.99301]
[1722347474071,5.99267,3341.5,3340.9,2.99312]
[1722347474310,5.99267,3341.5,3340.8,1.111289]
[1722347474499,5.99272,3341.5,3340.8,0.2]
[1722347474711,2.99298,3341.2,3340.8,0.2]
[1722347474933,2.99287,3341.3,3340.8,3.19329]
[1722347475215,5.99271,3341.5,3340.9,0.21203944]
[1722347475464,3.0,3341.5,3340.9,0.21203944]
[1722347475620,2.9929,3341.3,3340.8,0.4]
[1722347475812,2.99307,3341.1,3340.8,0.4]
[1722347476002,5.98583,3341.3,3340.8,0.4]
[1722347476203,3.0,3341.5,3340.9,3.20506787]
[1722347476449,3.0,3341.5,3341.1,2.99295]
[1722347477054,3.0,3341.5,3341.2,0.21165709]
[1722347477470,5.99268,3341.5,3341.2,0.21165709]
[1722347477754,5.99271,3341.5,3340.9,2.99316]
[1722347478055,3.0,3341.5,3341.0,3.20475711]
[1722347478700,3.0,3341.5,3341.2,2.99286]
[1722347479000,7.47,3341.7,3341.5,2.99266]
[1722347479227,7.47,3341.7,3341.3,0.21162209]
[1722347479446,7.47,3341.7,3341.6,2.99257]
[1722347479749,0.5086957,3342.1,3341.8,2.99235]
[1722347480108,0.5086957,3342.1,3341.9,0.21136697]
[1722347481053,0.5086957,3342.1,3342.0,0.21109669]
[1722347481197,0.5086957,3342.1,3341.7,2.99242]
[1722347481400,0.5086957,3342.1,3342.0,0.21109669]
[1722347481598,7.47,3342.5,3342.2,2.99199]
[1722347481806,0.31279054,3342.7,3342.4,2.99184]
[1722347482079,2.99119,3343.2,3342.5,2.9917]
[1722347482277,2.99125,3343.1,3342.5,3.20257344]
[1722347482548,4.037485,3343.0,3342.5,3.20264344]
[1722347482756,0.31278051,3343.2,3342.6,2.99167]
[1722347482903,0.31278051,3343.2,3342.7,2.99158]
[1722347483103,0.31278051,3343.2,3342.3,0.05983119]
[1722347483316,7.47,3343.3,3342.9,2.99136]
[1722347483535,7.47,3343.3,3342.9,2.99134]
[1722347483705,2.99123,3343.1,3343.0,0.2105987]
[1722347484041,8.56695757,3343.3,3342.4,2.99185]
[1722347484042,2.99114,3343.2,3342.4,2.99185]
[1722347484202,2.99137,3343.0,3342.5,2.99177]
[1722347484537,8.56695757,3343.3,3342.6,2.99162]
[1722347484703,7.47,3343.3,3342.8,2.9915]
[1722347484906,7.47,3343.3,3342.1,2.9921]
[1722347484907,7.47,3343.3,3343.0,2.99127]
[1722347485262,0.5086957,3343.5,3343.1,2.99122]
[1722347485468,0.5086957,3343.5,3343.4,2.99096]
[1722347485675,7.47,3344.3,3343.8,2.99055]
[1722347485808,2.574005,3344.3,3344.0,2.99041]
[1722347486002,2.98999,3344.5,3343.9,2.9905]
[1722347486247,2.98989,3344.6,3343.4,2.99094]
[1722347486611,2.98989,3344.6,3344.0,2.99037]
[1722347486780,7.47,3344.7,3344.4,2.99004]
[1722347486925,7.47,3344.7,3344.4,2.99001]
[1722347487248,8.29914814,3344.7,3344.2,2.99018]
[1722347487579,11.28902814,3344.7,3344.1,2.99031]
[1722347487726,8.29914814,3344.7,3344.2,2.99017]
[1722347487924,7.47,3344.7,3344.4,2.99]
[1722347488322,0.5086957,3344.9,3344.4,2.99]
[1722347488821,0.5086957,3344.9,3344.6,2.98989]
[1722347489695,0.5086957,3344.9,3344.4,2.99]
[1722347489865,2.98977,3344.8,3344.1,2.99033]
[1722347490169,2.98989,3344.6,3344.1,2.99033]
[1722347490401,3.33965657,3344.7,3344.1,2.99033]
[1722347490811,2.98997,3344.6,3344.0,2.99041]
[1722347491101,2.98998,3344.5,3343.8,7.37]
[1722347491302,3.33971657,3344.7,3344.1,2.99027]
[1722347491506,0.38484123,3344.6,3344.1,2.99027]
[1722347491903,0.5086957,3344.9,3344.3,2.99008]
[1722347492067,0.5086957,3344.9,3344.3,2.99009]
[1722347492267,0.5086957,3344.9,3344.0,0.0597984]
[1722347492574,0.5086957,3344.9,3344.1,3.19917861]
[1722347492908,0.5086957,3344.9,3344.5,2.98997]
[1722347493105,1.60551827,3344.9,3344.6,2.98987]
[1722347493309,0.5086957,3344.9,3344.7,2.9898]
[1722347493510,0.5086957,3344.9,3344.6,0.20867391]
[1722347493812,0.5086957,3344.9,3344.7,3.19842898]
[1722347494375,0.5086957,3344.9,3344.7,0.20863898]
[1722347494606,3.4983557,3344.9,3344.1,2.99027]
[1722347494814,0.34983557,3344.8,3343.9,2.99047]
[1722347495009,0.34983557,3344.8,3344.3,2.99009]
[1722347495211,3.4983557,3344.9,3343.7,12.74656]
[1722347495212,0.5086957,3344.9,3344.2,0.05979997]
[1722347495366,0.5086957,3344.9,3344.7,2.98975]
[1722347495560,0.5086957,3344.9,3344.5,2.98992]
[1722347496009,2.98931,3345.3,3344.7,5.97948]
[1722347496294,13.45913,3345.5,3343.7,12.74655]
[1722347496295,3.0,3345.5,3344.9,2.98956]
[1722347496706,2.98918,3345.4,3345.0,0.20802572]
[1722347497270,3.0,3345.5,3345.0,3.19755572]
[1722347497467,3.0,3345.5,3345.0,0.20802572]
[1722347497692,3.0,3345.5,3344.3,10.36012]
[1722347497898,2.98954,3345.0,3344.3,10.36012]
[1722347498071,3.288614,3344.9,3344.1,2.4734]
[1722347498274,3.288614,3344.9,3344.4,0.20823532]
[1722347498500,3.288614,3344.9,3343.6,9.8434]
[1722347498501,0.298954,3344.9,3343.6,9.8434]
[1722347498813,2.98981,3344.7,3344.5,0.20800093]
[1722347499040,8.96967,3344.6,3344.5,0.20800093]
[1722347499177,2.9904,3344.1,3343.5,2.99086]
[1722347499511,2.99063,3343.8,3343.6,0.20843446]
[1722347499719,5.98138,3343.7,3343.6,0.20843446]
[1722347499900,2.99093,3343.5,3342.8,2.99149]
[1722347500084,2.99138,3343.0,3342.4,5.27462]
[1722347500437,2.99138,3343.0,3342.9,0.2086792]
[1722347500724,2.99079,3343.6,3342.3,7.37]
[1722347500725,2.99154,3342.8,3342.5,0.2088191]
[1722347500881,2.99154,3342.8,3342.2,2.99201]